Cogmind - Beta 17 @@@ ROGUE MODE // 2026.08.12 @ 21:49:26 Player: Drosofila Result: Destroyed self via exploding Fusion Modulator Performance ------------- Evolutions (1) 500 Regions Visited (2) 400 Robots Destroyed (19) 95 Value Destroyed (616) 616 Prototype IDs (1) 20 Alien Tech Used (0) 0 Bonus (0) 0 TOTAL SCORE: 1631 Bonus ------- None Cogmind --------- Core Integrity 0/400 Matter 271/300 Energy 100/100 System Corruption 0% Temperature Cool (12) Movement Treading (240) Ox1 Location -9/Materials Parts ------- > --- POWER (2) -------- (None) > --- PROPULSION (3) --- Light Treads > --- UTILITY (2) ------ Large Storage Unit Utility Shielding > --- WEAPON (2) ------- Light Assault Rifle Grenade Launcher > --- INVENTORY (15) --- Ion Engine Ion Engine Heat Sink Small Laser Heavy Assault Rifle Peak State ------------ > --- POWER ------------ Ion Engine Improved Ion Engine > --- PROPULSION ------- Light Treads > --- UTILITY ---------- Large Storage Unit Utility Shielding > --- WEAPON ----------- Advanced Beam Cannon Assault Rifle > --- INVENTORY -------- Ion Engine Ion Engine Heat Sink Small Laser Grenade Launcher [Rating: 10] Favorites ----------- Power Light Ion Engine Engine Light Ion Engine Power Core Light Nuclear Core Propulsion Light Treads Treads Light Treads Utility Large Storage Unit Storage Large Storage Unit Protection Utility Shielding Weapon Assault Rifle Energy Gun Small Laser Energy Cannon Advanced Beam Cannon Ballistic Gun Assault Rifle Launcher Grenade Launcher Build | -11 -10 -9 ------- Run | Yrd Mat Mat Slots Evolved 2 | . . 2 Power 1 | . . 1 Propulsion 1 | . . 1 Utility . | . . . Weapon . | . . . Parts Attached 18 | 6 2 10 Power 5 | 1 . 4 Engine 4 | 1 . 3 Core 1 | . . 1 Reactor . | . . . Propulsion 4 | 2 . 2 Treads 4 | 2 . 2 Leg . | . . . Wheel . | . . . Hover . | . . . Flight . | . . . Utility 3 | 1 2 . Device . | . . . Storage 2 | 1 1 . Processor . | . . . Hackware . | . . . Protection 1 | . 1 . Artifact . | . . . Weapon 6 | 2 . 4 Energy Gun 1 | . . 1 Energy Cannon 1 | . . 1 Ballistic Gun 3 | 2 . 1 Ballistic Cannon . | . . . Launcher 1 | . . 1 Special Weapon . | . . . Impact Weapon . | . . . Slashing Weapon . | . . . Piercing Weapon . | . . . Special Melee Weapon . | . . . Unidentified Prototypes 1 | . . 1 Parts Lost 9 | . . 9 Power 5 | . . 5 Propulsion 2 | . . 2 Utility . | . . . Weapon 2 | . . 2 Highest Loss Streak 2 | . . 2 To Critical Strikes . | . . . Average Backups 2 | . . 3 Power 1 | . . 1 Propulsion . | . . . Utility . | . . . Weapon 1 | . . 1 Tool/Special . | . . . Unused Backups 4 | . . 4 Power 2 | . . 2 Propulsion . | . . . Utility 1 | . . 1 Weapon 1 | . . 1 Tool/Special . | . . . Average Slot Usage (%) 70 | . 94 59 Engine 15 | . 14 15 Treads 11 | . 28 4 Storage 11 | . 14 11 Protection 10 | . 9 11 Energy Cannon 1 | . . 2 Ballistic Gun 17 | . 28 12 Peak Build Rating 10 | 6 7 10 Average Rating 6 | 4 6 6 On Entrance 4 | . 6 7 Avg Prop Armor Cover (%) . | . . . Naked Turns . | . . . Heaviest Build 39 | 11 27 39 Greatest Support 40 | 40 40 40 Greatest Overweight (x) 12 | . . 12 Average Overweight (x) 2 | . . 5 Largest Inventory Capacity 15 | 8 15 15 Average Capacity 14 | 7 13 15 Most Carried 8 | 5 2 8 Average Carried 2 | . . 3 Final Capacity 15 | 8 15 15 Final Carried 5 | . 1 5 Class Distribution -------------------- 100% | Mutant Dominant Class ---------------- Mutant | -10/Materials Mutant | -9/Materials Resources | -11 -10 -9 ----------- Run | Yrd Mat Mat Matter Collected 570 | 230 82 258 Remotely . | . . . Salvage Created 631 | . 128 503 Parts 30 | . 7 23 Haulers Intercepted . | . . . Recyclers Shooed 3 | . . 3 Parts Field Recycled . | . . . Retrieved Matter . | . . . Parts Self-Destructed . | . . . Prevented . | . . . Parts Restored . | . . . Kills | -11 -10 -9 ------- Run | Yrd Mat Mat Combat Hostiles Destroyed 18 | . 3 15 Guns 10 | . 3 7 Cannons 3 | . . 3 AOE 5 | . . 5 Classes Destroyed 6 | . 1 5 Watcher 1 | . . 1 Swarmer 3 | . . 3 Grunt 11 | . 3 8 Brawler 1 | . . 1 Duelist 1 | . . 1 Sentry 2 | . . 2 Best Kill Streak 4 | . 2 4 Combat Bots Only 3 | . 2 3 Max Kills in Single Turn 3 | . 1 3 Gunslinging . | . . . Exploded 2 | . . 2 Melee . | . . . Uniques/NPCs Destroyed . | . . . Combat | -11 -10 -9 -------- Run | Yrd Mat Mat Hostile Shots Fired 172 | . 22 150 Missed 56 | . 6 50 Hits 116 | . 16 100 Melee 9 | . . 9 Projectile 107 | . 16 91 Critical Strikes 4 | . . 4 Damage Taken 1591 | . 171 1420 Core 501 | . 52 449 Absorbed by Shields . | . . . Redirected to Shielding 43 | . 6 37 Core Remaining (%) 89 | 100 79 . Volleys Fired 75 | . 8 67 Largest 2 | . 2 2 Hottest 88 | . 40 88 Shots Fired 112 | . 16 96 Gun 91 | . 16 75 Cannon 16 | . . 16 Launcher 5 | . . 5 Special . | . . . Kinetic 91 | . 16 75 Thermal 16 | . . 16 Explosive 5 | . . 5 Electromagnetic . | . . . Robot Hit Streak 9 | . 5 9 Robot Miss Streak 3 | . 3 3 Penetration Max . | . . . Secondary Targets 1 | . 1 . Max Gunslinging Chain 1 | . 1 . Shots Hit Robots 69 | . 9 60 Core Hits 38 | . 6 32 Critical Kills . | . . . Critical Parts Destroyed 1 | . . 1 Critical Strikes 1 | . . 1 Destroy 1 | . . 1 Melee Attacks . | . . . Impact . | . . . Slashing . | . . . Piercing . | . . . Sneak Attacks . | . . . Combat Hostiles . | . . . Follow-up Attacks . | . . . Damage Inflicted 1208 | . 99 1109 Guns 608 | . 99 509 Cannons 247 | . . 247 Explosions 350 | . . 350 Melee . | . . . Ramming 3 | . . 3 Kinetic 608 | . 99 509 Thermal 247 | . . 247 Explosive 350 | . . 350 Electromagnetic . | . . . Impact . | . . . Slashing . | . . . Piercing . | . . . Highest Corruption 2 | . 2 . Average Corruption 2 | . 2 . Corruption Purged . | . . . Corruption Blocked . | . . . Effects 2 | . 2 . Message Errors 1 | . 1 . Matter Fused 1 | . 1 . Overload Shots . | . . . Overflow Damage 12 | . . 12 Projectiles . | . . . Explosions 12 | . . 12 Melee . | . . . Knockbacks . | . . . Impact . | . . . Kinetic . | . . . Secondary . | . . . Self-Inflicted Damage 71 | . . 71 Shots 2 | . . 2 Rammed 1 | . . 1 Targets Rammed 1 | . . 1 Kicked . | . . . Crushed . | . . . Highest Temperature 261 | . 18 261 Average Temperature 84 | . 12 90 Received Heat Transfer 597 | . 96 501 Siege Activations . | . . . Martial Activations . | . . . Shielding Activations . | . . . Robots Disrupted . | . . . Combat Hostiles . | . . . Robots Corrupted . | . . . Combat Hostiles . | . . . Parts Fried . | . . . Impact Corruptions . | . . . Robots Melted . | . . . Combat Hostiles . | . . . Parts Melted 2 | . . 2 Heat Transferred 444 | . . 444 Parts Sabotaged . | . . . Parts Stolen . | . . . Parts Stripped . | . . . Power Chain Reactions . | . . . Alert | -11 -10 -9 ------- Run | Yrd Mat Mat Maximum Alert Level . | . . . Low Security (%) 100 | 100 100 100 Level 1 . | . . . Level 2 . | . . . Level 3 . | . . . Level 4 . | . . . Level 5 . | . . . High Security . | . . . Max Security . | . . . Peak Influence 175 | . 50 175 Initial . | . . . Average 21 | . 12 27 Influence Increases 509 | . 70 439 Destroy 0b10 Robot/C 360 | . 60 300 Destroy 0b10 Robot/NC 5 | . . 5 Destroy Leader 82 | . 10 72 Disable Machine 15 | . . 15 Destroy Structure 32 | . . 32 Lose Combat Pursuer 15 | . . 15 Influence Decreases 329 | . 70 259 Time Decay 249 | . 70 179 Lost Part 80 | . . 80 Squads Dispatched 3 | . 2 1 Investigation 1 | . 1 . Extermination . | . . . Reinforcement 2 | . 1 1 Assault . | . . . Garrison . | . . . Intercept . | . . . Searches Triggered . | . . . Construction Impeded . | . . . Haulers Reinforced . | . . . Active Scanning Responses . | . . . Cargo Convoy Interrupts . | . . . Stealth | -11 -10 -9 --------- Run | Yrd Mat Mat Distress Signals 4 | . . 4 Communications Jammed . | . . . Distress Signals . | . . . Times Spotted 25 | . 4 21 Peak Tracking Total 5 | . 2 5 Tactical Retreats 1 | . . 1 Traps | -11 -10 -9 ------- Run | Yrd Mat Mat Traps Triggered 2 | . 2 . Indirectly . | . . . Trap Hack Attempts . | . . . Triggered . | . . . Disarmed . | . . . Reprogrammed . | . . . Reused . | . . . Traps Extracted . | . . . Installed . | . . . Triggered . | . . . Machines | -11 -10 -9 ---------- Run | Yrd Mat Mat Machines Disabled 1 | . . 1 Max in Single Turn 1 | . . 1 Machines Repaired . | . . . Machines Dismantled . | . . . Machines Sabotaged . | . . . Overloaded Fab Kills . | . . . Hacking | -11 -10 -9 --------- Run | Yrd Mat Mat Machines Accessed . | . . . Terminals . | . . . Fabricators . | . . . Repair Stations . | . . . Recycling Units . | . . . Scanalyzers . | . . . Garrison Access . | . . . Total Hacks . | . . . Successful . | . . . Failed . | . . . Catastrophic . | . . . Database Lockouts . | . . . Manual . | . . . Terminals . | . . . Fabricators . | . . . Repair Stations . | . . . Recycling Units . | . . . Scanalyzers . | . . . Garrison Access . | . . . Terminal Hacks . | . . . Fabricator Hacks . | . . . Repair Station Hacks . | . . . Recycling Unit Hacks . | . . . Scanalyzer . | . . . Garrison Access Hacks . | . . . Unauthorized Hacks . | . . . Terminals . | . . . Fabricators . | . . . Repair Stations . | . . . Recycling Units . | . . . Scanalyzers . | . . . Garrison Access . | . . . Data Cores Recovered . | . . . Used . | . . . Hacking Detections . | . . . Full Trace Events . | . . . Feedback Events . | . . . Feedback Blocked . | . . . Robot Schematics Acquired . | . . . Robots Built . | . . . Authchips . | . . . Time . | . . . Total Robot Build Rating . | . . . Part Schematics Acquired . | . . . Parts Built . | . . . Authchips . | . . . Time . | . . . Total Part Build Rating . | . . . Part Studies Acquired . | . . . Parts Repaired . | . . . Time . | . . . Parts Recycled . | . . . Recycled Matter . | . . . Retrieved Matter . | . . . Retrieved Components . | . . . Parts Scanalyzed . | . . . Part Schematics Acquired . | . . . Parts Damaged . | . . . Bothacking | -11 -10 -9 ------------ Run | Yrd Mat Mat Used RIF Installer . | . . . Robots Hacked . | . . . Non-combat . | . . . Combat . | . . . Robot Hacks Applied . | . . . Relay Couplers Released . | . . . Fabnet Peak Effective % . | . . . Robots Rewired . | . . . Allies Hacked . | . . . Hacks Repelled . | . . . Allies | -11 -10 -9 -------- Run | Yrd Mat Mat Total Allies . | . . . Largest Group . | . . . Highest-Rated Group . | . . . Highest-Rated Ally . | . . . Total Orders . | . . . Ally Attacks . | . . . Total Damage . | . . . Kills . | . . . Allies Corrupted . | . . . Allies Melted . | . . . Intel | -11 -10 -9 ------- Run | Yrd Mat Mat Active Infowar (turns) . | . . . Robot Analysis Total . | . . . Derelict Logs Recovered . | . . . Drone Launches . | . . . Drone Recoveries . | . . . Exploration | -11 -10 -9 ------------- Run | Yrd Mat Mat Turns Passed 1289 | 80 363 846 Spaces Moved 418 | 51 206 161 Core 95 | 15 . 80 Treads 323 | 36 206 81 Legs . | . . . Wheels . | . . . Hover . | . . . Flight . | . . . Fastest Speed 50 | 50 160 160 Average Speed 244 | 127 160 390 Slowest Speed 650 | 160 160 650 Overloaded Moves . | . . . Propulsion Burnouts . | . . . Robots Hopped . | . . . Potential Cave-ins . | . . . Cave-ins Triggered . | . . . Exploration Rate (%) 18 | 4 36 15 Regions Visited 2 Branch Regions . Pre-discovered Areas . | . . . Known Exits Taken . | . . . Unknown Exits Taken 2 | 1 1 . Scrap Searched . | . . . Spaces Dug . | . . . Terrain Destroyed 44 | . . 44 Melee . | . . . Projectile . | . . . AOE 44 | . . 44 Terrain Rammed . | . . . Walls Destroyed . | . . . Machines Disabled . | . . . Actions | -11 -10 -9 --------- Run | Yrd Mat Mat Total 576 | 66 226 284 Wait 40 | 5 7 28 Move 416 | 50 205 161 Hop . | . . . Pick Up 23 | 5 3 15 Fast Attach 1 | 1 . . Attach 16 | 5 2 9 Detach . | . . . Swap 1 | . . 1 Drop 3 | . 1 2 Fire 75 | . 8 67 Melee . | . . . Ram 1 | . . 1 Kick . | . . . Crush . | . . . Escape Stasis . | . . . Rewire . | . . . Trap . | . . . Miscellaneous . | . . . Route ------- -11/Scrapyard -10/Materials (discovered 2 exits: [*Mat] / [*Min]) -9/Materials History --------- Turn | Location | Event 11 | -11/Scrapyard | Discovered new exit (range 15) 81 | -11/Scrapyard | Entered Materials 303 | -10/Materials | Build established: Mutant 366 | -10/Materials | Discovered new exit (range 8) 414 | -10/Materials | Discovered new exit (range 9) 444 | -10/Materials | Entered another Materials area 444 | -9/Materials | Evolved 2 slots: Power x1, Propulsion x1 950 | -9/Materials | Core integrity fell below 50% 1195 | -9/Materials | Core integrity fell below 20% 1290 | -9/Materials | Destroyed self via exploding Fusion Modulator Last Messages --------------- Destroyed Heat Sink. Y-45 Defender destroyed. Acquired 30 matter. Acquired Lgt. Treads. Lgt. Nuclear Core destroyed. G-34 Mercenary destroyed. U-05 Engineer lays Concrete. Acquired Hvy. Assault Rifle. U-05 Engineer lays Concrete. Acquired 47 matter. U-05 Engineer lays Concrete. W-16 Scout sends out distress signal. Destroyed Lgt. Ion Engine. W-16 Scout destroyed. G-34 Mercenary destroyed. Lgt. Ion Engine destroyed. Destroyed Lgt. Ion Engine. The unstable cave ceiling collapses. B-36 Bruiser destroyed. U-05 Engineer lays Concrete. Map ----- +----------------------------------------------------+ | ?????????????????????????????????????????????????? | | ?????????????????????????????????????????????????? | | ?????????????????????????????????????????????????? | | ?????????????????????????????????????????????????? | | ?????????????????????????????????????????????????? | | ?????????????????????????????????????????????????? | | ????????????????? ?????????????????????????????? | | ????????????????? ?????????????????????????????? | | ????????????????? ?????????????????????????????? | | ????????????????? ?????????????????????????????? | | ????????????????? #????????? ??????????????????? | | ?????????????????# ######### ??????????????????? | | ?????????????????# ???????????????????? | | ???????????????#?# ????????????????????? | | ??????????????? ?# ?????????????????????? | | ??????????????? ?# ??????????????????????? | | ##????????????? ?# ???????????????????????? | | ?????????????/?# #??#######???????????????? | | #????????????? ?# ### #???????????????? | | #????????????? ?# # ; #???????????????? | | ##???????????# ## # ; #???????????????? | | #???????????# ## # ; #???????????????? | | T #???????????# ## # ; #???????????????? | | #???????????# ## # #???????????????? | | ##???????????# ## ## #?????????? | | #????????????# ## = u @ % + ?????? | | #????????????# ## # ;# #?????????? | | %#?????######## ##% % ## #????????????????? | | #?????# # %! ### # ####????????????????? | | ###???#! %%+ #??####???????????????????? | | #???# %####% #?????????????????????????? | | ##### #??# #?????????????????????????? | | T + ] #??# #?????????????????????????? | | ##### ] #??# #?????????????????????????? | | #???########?? ????????????????????????? | | +###????????????## #??????????????????????? | | ????????????????## #??????????????????????? | | ?????????????????# #??????????????????????? | | ????????????????? % ??????????????????????? | | ?????????????????# % # ?????????????????????? | | ?????????????????### = ?????????????????????? | | ???????????????????? # ?????????????????????? | | ???????????????????? ##?????????????????????? | | ???????????????????? ??????????????????????? | | ???????????????????? ???????????????????????? | | ???????????????????? ??????????????????????????? | | ?????????????????????????????????????????????????? | | ?????????????????????????????????????????????????? | | ?????????????????????????????????????????????????? | | ?????????????????????????????????????????????????? | +----------------------------------------------------+ Best States ------------- Heat Dissipation 28 Energy Generation 19 Energy Capacity 415 Matter Stores 300 Matter Capacity 300 Sight Range 16 Terrain Scan Density 10 Utility Shielding 33 Evasion (%) 50 Recoil Reduction 2 Item Schematics ----------------- None Robot Schematics ------------------ None Fabricated ------------ Nothing Repaired ---------- Nothing Studied --------- None Alien Tech Used ----------------- None Achievements -------------- None Challenges ------------ None Game ------ Seed ForceSignalArachnoskeleton Manual? 0 Play Time 00:11:53 Cumulative 4.2 hours Start 2026.08.12 @ 21:29:34 End 2026.08.12 @ 21:49:26 Sessions 1 Manual Loads 0 Difficulty Rogue Special Mode None Game No. 8 Rogue 8 Adventurer 0 Explorer 0 Win Type - Total 0 Types 0/0/0/0/0/0/0/0/0/0 Lore% 0 Gallery% 7 Achievement% 6 Wizard Run 0 Options --------- Layout 0 ASCII 0 Keyboard 0 Movement Mouse Keybinds 0 Fullscreen 1 Font 18/Terminus Map View 38x25 Zoom Use 99% Tactical HUD 0 Map Filters NONE Filters NONE Steam 1 RUN: 62057e7c-7c24-45c0-a976-609dbea31b88